Cogmind - Beta 16 @@@ ROGUE MODE // 2026.01.29 @ 02:26:00 Player: luckinvolved Result: Destroyed by FY-6IT(R) with Subdweller Machine Gun Performance ------------- Evolutions (0) 0 Regions Visited (2) 400 Robots Destroyed (35) 175 Value Destroyed (1061) 1061 Prototype IDs (12) 240 Alien Tech Used (0) 0 Bonus (0) 0 TOTAL SCORE: 1876 Bonus ------- None Cogmind --------- Core Integrity 0/250 Matter 169/300 Energy 36/100 System Corruption 0% Temperature Cool (0) Movement Treading (240) Ox1 Location -10/Subcaves Parts ------- > --- POWER (1) -------- (None) > --- PROPULSION (2) --- Improved Treads Improved Treads > --- UTILITY (2) ------ Huge Storage Unit Makeshift Light Armor Plating > --- WEAPON (2) ------- EM Pulse Gun Subdweller Machine Gun > --- INVENTORY (25) --- Light Treads Light Treads Improved Treads Improved Treads Improved Treads Compact Wheel Compact Wheel Heat Sink Improved Heat Sink Sensor Array Signal Interpreter ECM Suite Makeshift Light Armor Plating Power Bank EM Pulse Gun Subdweller Machine Gun Grenade Launcher Grenade Launcher Subdweller Shrapnel Launcher Subdweller Shrapnel Launcher Mining Claw Peak State ------------ > --- POWER ------------ Ion Engine > --- PROPULSION ------- Improved Treads Improved Treads > --- UTILITY ---------- Improved Heat Sink Huge Storage Unit > --- WEAPON ----------- Subdweller Machine Gun Subdweller Machine Gun > --- INVENTORY -------- Ion Engine Signal Interpreter EM Pulse Gun EM Pulse Gun Assault Rifle Subdweller Machine Gun Grenade Launcher Grenade Launcher Subdweller Shrapnel Launcher Mining Claw SUBCON Basin [Rating: 32] Favorites ----------- Power Ion Engine Engine Ion Engine Propulsion Improved Treads Treads Improved Treads Utility Huge Storage Unit Device Sensor Array Storage Huge Storage Unit Processor Targeting Computer Protection Makeshift Light Armor Plating Weapon Subdweller Machine Gun Energy Gun Medium Laser Ballistic Gun Subdweller Machine Gun Launcher Subdweller Shrapnel Launcher Slashing Weapon Mining Claw Build | -11 -10 -10 ------- Run | Yrd Mat Sub Slots Evolved . | . . . Power . | . . . Propulsion . | . . . Utility . | . . . Weapon . | . . . Parts Attached 33 | 6 10 17 Power 5 | 1 . 4 Engine 5 | 1 . 4 Core . | . . . Reactor . | . . . Propulsion 7 | 2 2 3 Treads 7 | 2 2 3 Leg . | . . . Wheel . | . . . Hover . | . . . Flight . | . . . Utility 9 | 1 5 3 Device 3 | . 1 2 Storage 4 | 1 3 . Processor 1 | . 1 . Hackware . | . . . Protection 1 | . . 1 Artifact . | . . . Weapon 12 | 2 3 7 Energy Gun 3 | 2 . 1 Energy Cannon . | . . . Ballistic Gun 5 | . 1 4 Ballistic Cannon . | . . . Launcher 3 | . 1 2 Special Weapon . | . . . Impact Weapon . | . . . Slashing Weapon 1 | . 1 . Piercing Weapon . | . . . Special Melee Weapon . | . . . Unidentified Prototypes . | . . . Parts Lost 9 | . . 9 Power 4 | . . 4 Propulsion 3 | . . 3 Utility . | . . . Weapon 2 | . . 2 Highest Loss Streak 2 | . . 2 To Critical Strikes . | . . . Average Backups 20 | . 14 23 Power 1 | . 1 1 Propulsion 7 | . 4 9 Utility 4 | . 3 5 Weapon 6 | . 4 8 Tool/Special . | . . . Unused Backups 17 | . 2 15 Power . | . . . Propulsion 5 | . . 5 Utility 8 | . 1 7 Weapon 4 | . 1 3 Tool/Special . | . . . Average Slot Usage (%) 99 | . 99 99 Engine 13 | . 14 13 Treads 27 | . 28 27 Device 11 | . 10 12 Storage 14 | . 14 14 Protection 1 | . . 1 Energy Gun 7 | . 21 1 Ballistic Gun 18 | . 4 25 Slashing Weapon 1 | . 1 1 Peak Build Rating 32 | 6 14 32 Average Rating 13 | 3 11 15 On Entrance 6 | . 6 14 Avg Prop Armor Cover (%) . | . . . Naked Turns . | . . . Heaviest Build 100 | 13 90 100 Greatest Support 46 | 40 46 46 Greatest Overweight (x) 3 | 3 1 2 Average Overweight (x) 1 | 1 . 1 Largest Inventory Capacity 25 | 8 25 25 Average Capacity 22 | 7 17 25 Most Carried 25 | 4 25 25 Average Carried 20 | . 14 23 Final Capacity 25 | 8 25 25 Final Carried 25 | 4 25 21 Class Distribution -------------------- 100% | Mutant Dominant Class ---------------- Mutant | -10/Materials Mutant | -10/Subcaves Resources | -11 -10 -10 ----------- Run | Yrd Mat Sub Matter Collected 834 | 255 193 386 Remotely . | . . . Salvage Created 1210 | . 693 517 Parts 56 | . 34 22 Haulers Intercepted 2 | . 2 . Recyclers Shooed . | . . . Parts Field Recycled . | . . . Retrieved Matter . | . . . Parts Self-Destructed 4 | . . 4 Prevented . | . . . Parts Restored . | . . . Kills | -11 -10 -10 ------- Run | Yrd Mat Sub Combat Hostiles Destroyed 28 | . 14 14 Guns 22 | . 11 11 AOE 6 | . 3 3 Classes Destroyed 6 | . 5 1 Worker 2 | . 2 . Hauler 2 | . 2 . Watcher 3 | . 3 . Swarmer 3 | . 3 . Grunt 12 | . 11 1 Subdweller 13 | . . 13 Best Kill Streak 4 | . 4 3 Combat Bots Only 4 | . 4 3 Max Kills in Single Turn 3 | . 3 2 Gunslinging . | . . . Exploded 3 | . 3 2 Melee . | . . . Uniques/NPCs Destroyed . | . . . Combat | -11 -10 -10 -------- Run | Yrd Mat Sub Hostile Shots Fired 108 | . 35 73 Missed 32 | . 14 18 Hits 76 | . 21 55 Projectile 76 | . 21 55 AOE 2 | . . 2 Damage Taken 1754 | . 269 1485 Core 260 | . 55 205 Absorbed by Shields . | . . . Core Remaining (%) 100 | 100 . . Volleys Fired 117 | . 53 64 Largest 2 | . 2 2 Hottest 90 | . 90 80 Shots Fired 232 | . 107 125 Gun 227 | . 106 121 Cannon . | . . . Launcher 5 | . 1 4 Special . | . . . Kinetic 121 | . 7 114 Thermal 108 | . 99 9 Explosive 1 | . 1 . Electromagnetic 2 | . . 2 Robot Hit Streak 17 | . 17 17 Robot Miss Streak 3 | . 2 3 Penetration Max . | . . . Secondary Targets . | . . . Shots Hit Robots 140 | . 77 63 Core Hits 64 | . 37 27 Critical Kills . | . . . Critical Parts Destroyed . | . . . Critical Strikes 8 | . 6 2 Burn 6 | . 6 . Destroy 2 | . . 2 Melee Attacks 20 | . 1 19 Impact . | . . . Slashing 20 | . 1 19 Piercing . | . . . Sneak Attacks . | . . . Combat Hostiles . | . . . Follow-up Attacks . | . . . Damage Inflicted 2688 | . 1193 1495 Guns 2060 | . 970 1090 Cannons . | . . . Explosions 552 | . 147 405 Melee . | . . . Ramming 76 | . 76 . Kinetic 1498 | . 98 1400 Thermal 946 | . 872 74 Explosive 147 | . 147 . Electromagnetic 21 | . . 21 Impact . | . . . Slashing . | . . . Piercing . | . . . Highest Corruption 3 | . 3 3 Average Corruption 2 | . 2 2 Corruption Purged 3 | . . 3 Corruption Blocked . | . . . Effects 46 | . 30 16 Message Errors 11 | . 7 4 Matter Fused 13 | . 9 4 Heat Flow Errors 5 | . 4 1 Energy Discharges 5 | . 3 2 Parts Fused 1 | . 1 . Data Loss (minor) 2 | . 1 1 Data Loss (major) 4 | . 2 2 Misfires 3 | . 2 1 Alerts 2 | . 1 1 Overload Shots . | . . . Overflow Damage . | . . . Projectiles . | . . . Explosions . | . . . Melee . | . . . Knockbacks 1 | . 1 . Impact 1 | . 1 . Kinetic . | . . . Secondary . | . . . Self-Inflicted Damage 31 | . . 31 Shots 1 | . . 1 Rammed 6 | . 6 . Targets Rammed 7 | . 7 . Kicked . | . . . Crushed 1 | . 1 . Highest Temperature 297 | . 297 156 Average Temperature 97 | . 96 102 Received Heat Transfer 336 | . 147 189 Siege Activations . | . . . Martial Activations . | . . . Shielding Activations . | . . . Robots Disrupted . | . . . Combat Hostiles . | . . . Robots Corrupted . | . . . Combat Hostiles . | . . . Parts Fried . | . . . Impact Corruptions . | . . . Robots Melted . | . . . Combat Hostiles . | . . . Parts Melted 5 | . 4 1 Heat Transferred 2981 | . 2759 222 Parts Sabotaged . | . . . Parts Stolen . | . . . Parts Stripped . | . . . Power Chain Reactions . | . . . Alert | -11 -10 -10 ------- Run | Yrd Mat Sub Maximum Alert Level . | . . . Low Security (%) 100 | 100 100 . Level 1 . | . . . Level 2 . | . . . Level 3 . | . . . Level 4 . | . . . Level 5 . | . . . High Security . | . . . Max Security . | . . . Peak Influence 103 | . 103 . Initial . | . . . Average 26 | . 29 . Influence Increases 490 | . 470 20 Destroy 0b10 Robot/C 300 | . 280 20 Destroy 0b10 Robot/NC 35 | . 35 . Destroy Leader 80 | . 80 . Successful Hack 27 | . 27 . Select Force Hacks 30 | . 30 . Disable Machine 15 | . 15 . Destroy Structure 3 | . 3 . Influence Decreases 490 | . 386 104 Entered New Map 41 | . . 41 Time Decay 439 | . 386 53 Lost Part 10 | . . 10 Squads Dispatched 3 | . 3 . Investigation 3 | . 3 . Extermination . | . . . Reinforcement . | . . . Assault . | . . . Garrison . | . . . Intercept . | . . . Searches Triggered . | . . . Construction Impeded . | . . . Haulers Reinforced . | . . . Active Scanning Responses . | . . . Cargo Convoy Interrupts . | . . . Stealth | -11 -10 -10 --------- Run | Yrd Mat Sub Distress Signals . | . . . Communications Jammed . | . . . Distress Signals . | . . . Times Spotted 40 | . 22 18 Peak Tracking Total 4 | . 4 3 Tactical Retreats . | . . . Traps | -11 -10 -10 ------- Run | Yrd Mat Sub Traps Triggered 6 | . 3 3 Indirectly . | . . . Trap Hack Attempts . | . . . Triggered . | . . . Disarmed . | . . . Reprogrammed . | . . . Reused . | . . . Traps Extracted . | . . . Installed . | . . . Triggered . | . . . Machines | -11 -10 -10 ---------- Run | Yrd Mat Sub Machines Disabled 2 | . 1 1 Max in Single Turn 1 | . 1 1 Machines Repaired . | . . . Machines Dismantled . | . . . Machines Sabotaged . | . . . Overloaded Fab Kills . | . . . Hacking | -11 -10 -10 --------- Run | Yrd Mat Sub Machines Accessed 11 | . 8 3 Terminals 7 | . 7 . Fabricators . | . . . Repair Stations . | . . . Recycling Units 1 | . 1 . Scanalyzers . | . . . Garrison Access . | . . . Total Hacks 30 | . 21 9 Successful 19 | . 10 9 Failed 10 | . 10 . Catastrophic . | . . . Database Lockouts 1 | . 1 . Manual 21 | . 21 . Terminals 19 | . 19 . Fabricators . | . . . Repair Stations . | . . . Recycling Units 2 | . 2 . Scanalyzers . | . . . Garrison Access . | . . . Terminal Hacks 10 | . 1 9 Record 6 | . . 6 Robot Analysis 1 | . 1 . Open Door 1 | . . 1 Proto ID Catalog 1 | . . 1 Release Object 1 | . . 1 Fabricator Hacks . | . . . Repair Station Hacks . | . . . Recycling Unit Hacks . | . . . Scanalyzer . | . . . Garrison Access Hacks . | . . . Unauthorized Hacks 9 | . 9 . Terminals 8 | . 8 . Botnet 2 | . 2 . Skim 6 | . 6 . Fabricators . | . . . Repair Stations . | . . . Recycling Units 1 | . 1 . Tunnel 1 | . 1 . Scanalyzers . | . . . Garrison Access . | . . . Data Cores Recovered . | . . . Used . | . . . Hacking Detections 6 | . 6 . Full Trace Events 1 | . 1 . Feedback Events . | . . . Feedback Blocked . | . . . Robot Schematics Acquired . | . . . Robots Built . | . . . Authchips . | . . . Time . | . . . Total Robot Build Rating . | . . . Part Schematics Acquired . | . . . Parts Built . | . . . Authchips . | . . . Time . | . . . Total Part Build Rating . | . . . Part Studies Acquired . | . . . Parts Repaired . | . . . Time . | . . . Parts Recycled . | . . . Recycled Matter . | . . . Retrieved Matter . | . . . Retrieved Components . | . . . Parts Scanalyzed . | . . . Part Schematics Acquired . | . . . Parts Damaged . | . . . Bothacking | -11 -10 -10 ------------ Run | Yrd Mat Sub Used RIF Installer . | . . . Robots Hacked . | . . . Non-combat . | . . . Combat . | . . . Robot Hacks Applied . | . . . Relay Couplers Released . | . . . Fabnet Peak Effective % . | . . . Robots Rewired . | . . . Allies Hacked . | . . . Hacks Repelled . | . . . Allies | -11 -10 -10 -------- Run | Yrd Mat Sub Total Allies . | . . . Largest Group . | . . . Highest-Rated Group . | . . . Highest-Rated Ally . | . . . Total Orders . | . . . Ally Attacks . | . . . Total Damage . | . . . Kills . | . . . Allies Corrupted . | . . . Allies Melted . | . . . Intel | -11 -10 -10 ------- Run | Yrd Mat Sub Active Infowar (turns) 2867 | . . 2867 Sensors 2867 | . . 2867 Robot Analysis Total 1 | . 1 . Derelict Logs Recovered . | . . . Drone Launches . | . . . Drone Recoveries . | . . . Exploration | -11 -10 -10 ------------- Run | Yrd Mat Sub Turns Passed 6883 | 245 2039 4599 Spaces Moved 2489 | 128 969 1392 Core 85 | 85 . . Treads 2404 | 43 969 1392 Legs . | . . . Wheels . | . . . Hover . | . . . Flight . | . . . Fastest Speed 50 | 50 160 240 Average Speed 251 | 182 184 304 Slowest Speed 320 | 200 240 320 Overloaded Moves . | . . . Propulsion Burnouts . | . . . Robots Hopped . | . . . Potential Cave-ins . | . . . Cave-ins Triggered . | . . . Exploration Rate (%) 59 | 8 100 69 Regions Visited 2 Branch Regions 1 Pre-discovered Areas 5 | . 5 . Known Exits Taken 1 | . 1 . Unknown Exits Taken 1 | 1 . . Scrap Searched 2 | . . 2 Spaces Dug . | . . . Terrain Destroyed 37 | . 3 34 Melee . | . . . Projectile . | . . . AOE 37 | . 3 34 Terrain Rammed . | . . . Walls Destroyed . | . . . Machines Disabled . | . . . Actions | -11 -10 -10 --------- Run | Yrd Mat Sub Total 2840 | 137 1104 1599 Wait 93 | . 37 56 Move 2487 | 127 968 1392 Hop . | . . . Pick Up 51 | 4 21 26 Fast Attach 7 | 6 1 . Attach 8 | . . 8 Detach . | . . . Swap 24 | . 11 13 Drop 25 | . 5 20 Fire 117 | . 53 64 Melee 20 | . 1 19 Ram . | . . . Kick . | . . . Crush 7 | . 7 . Escape Stasis . | . . . Rewire . | . . . Trap . | . . . Miscellaneous 1 | . . 1 Route ------- -11/Scrapyard -10/Materials (discovered 5 exits: [*Mat x3] / [*Min] / *Sub) -10/Subcaves History --------- Turn | Location | Event 16 | -11/Scrapyard | Discovered new exit (range 15) 246 | -11/Scrapyard | Entered Materials 304 | -10/Materials | Build established: Mutant 715 | -10/Materials | Discovered new exit (range 5) 1049 | -10/Materials | Discovered new exit (range 11) 1318 | -10/Materials | Discovered new exit (range 16) 1565 | -10/Materials | Discovered new exit (range 4) 1668 | -10/Materials | Central database locked down 1786 | -10/Materials | Learned 2 Storage zone layouts 1806 | -10/Materials | Learned location of Recycling (-8) 1814 | -10/Materials | Identified exit to Subcaves 1815 | -10/Materials | Learned location of 2 exits from Materials 1816 | -10/Materials | Learned location of 3 exits from Materials 1836 | -10/Materials | Learned 2 Mines zone layouts 2285 | -10/Materials | Entered Subcaves 2463 | -10/Subcaves | Shifting Twisted Machinery released Sub. Shrapnel Launcher 2519 | -10/Subcaves | Shifting Twisted Machinery released Sub. Machine Gun 2682 | -10/Subcaves | Shifting Twisted Machinery released Sub. Machine Gun 2745 | -10/Subcaves | Core integrity fell below 50% 2891 | -10/Subcaves | Released subatomizers from SUBCON Basin 2982 | -10/Subcaves | Found SUBCON Basin 3102 | -10/Subcaves | Shifting Twisted Machinery released Mak. System Restoration Module 4803 | -10/Subcaves | Disturbed a concealed Subdweller 4958 | -10/Subcaves | Shifting Twisted Machinery released Sub. Laser 5253 | -10/Subcaves | A swath of the cavern ceiling suddenly collapsed 5400 | -10/Subcaves | Shifting Twisted Machinery released Shrapnel Trap 6229 | -10/Subcaves | Ambushed by Subdwellers from Twisted Machinery 6455 | -10/Subcaves | Visited 4L-MR0's lab 6486 | -10/Subcaves | Found Power Bank 6733 | -10/Subcaves | Core integrity fell below 20% 6872 | -10/Subcaves | A Subdweller sparked back to life 6872 | -10/Subcaves | A Subdweller sparked back to life 6884 | -10/Subcaves | Destroyed by FY-6IT(R) with Subdweller Machine Gun Last Messages --------------- want to teach them a lesson in manners. 06477_ Testing Chamber breached. 06486_ Acquired Power Bank. 06499_ 4L-MR0 mumbles: "I'm surprised some of them are even willing to come in here given their fear of my usual visitors." 06505_ 4L-MR0 mumbles: "Who knows where that last prototype ended up, probably tossed aside somewhere as if it were useless junk..." 06715_ D8-WQ5(R) destroyed. 06724_ LZ-C3J(R) affixes Scrap Shield Fragment to Scrap Shield. 06725_ Sub. Machine Gun destroyed. 06731_ Sub. Machine Gun shoots sparks and powers down. 06734_ Lgt. Ion Engine destroyed. 06736_ LZ-C3J(R) destroyed. 06759_ Acquired 85 matter. 06776_ Subatomizers dissect the Sub. Monowheel. 06872_ HA-RCC(R) creaks and sparks as it begins to move. 06872_ 9J-SXN(R) creaks and sparks as it begins to move. 06872_ ZK-CKE(R) destroyed. 06875_ HA-RCC(R) destroyed. 06875_ 9J-SXN(R) destroyed. Map ----- +----------------------------------------------------+ | ?????????????????????????????????????????????????? | | ?????????????????????????????????????????????????? | | ?????????????????????????????????????????????????? | | ?????????????????????????????????????????????????? | | ?????????????????????????????????????????????????? | | ?????????????????????????????????????????????????? | | ?????????????????????????????????????????????????? | | ???????????????"?????????????????????????????????? | | ???????????????"""???????????????????????????????? | | ??????????????? " ???????????????????????????????? | | ???????????????# "???????????????????????????????? | | ???????????????# ???????????????????????????????? | | ??????????????? ???????????????????????????????? | | ?????????????### ???????????????????????????????? | | ????????????## R ##?????????????????????????????? | | ????????????# ?????????????????????????????? | | ????#???????# #????????????????????????????? | | ????# #### ????????????????????????????? | | ???? ???????????????????????????? | | ???# ###???###??????????????????? | | ???# ???# % ;### ###????????????????? | | ??? #??## ! ;; ##???????????????? | | ??## ?## # * & ##" ????????????? | | ### #?# # ""????????????? | | ? # #?# ## ?????????????? | | ?? ### ### @ #??????????????????? | | ???# ## # #??????????????????? | | ???# ; ## ##???######?????????? | | ???# ## #??#???# ????????? | | ??## ## ####### """" ?????????? | | #?# =& "" #???????????? | | ### = & ##??????????? | | ; ##! " #??????????? | | ;;;# ## "" #?????????? | | ##### ### " #????????? | | ### ##???## ##?## " #????????? | | ## ###########?# #?????###????### #####????????? | | ######???????????###???????????????##????????????? | | ?????????????????????????????????????????????????? | | ?????????????????????????????????????????????????? | | ?????????????????????????????????????????????????? | | ?????????????????????????????????????????????????? | | ?????????????????????????????????????????????????? | | ?????????????????????????????????????????????????? | | ?????????????????????????????????????????????????? | | ?????????????????????????????????????????????????? | | ?????????????????????????????????????????????????? | | ?????????????????????????????????????????????????? | | ?????????????????????????????????????????????????? | | ?????????????????????????????????????????????????? | +----------------------------------------------------+ Best States ------------- Heat Dissipation 39 Energy Generation 15 Energy Capacity 250 Matter Stores 300 Matter Capacity 300 Sight Range 16 Robot Scan Range 14 Terrain Scan Density 10 Armor Coverage 100 Evasion (%) 40 Targeting Accuracy 5 Recoil Reduction 2 Item Schematics ----------------- None Robot Schematics ------------------ None Fabricated ------------ Nothing Repaired ---------- Nothing Studied --------- None Alien Tech Used ----------------- None Achievements -------------- None Challenges ------------ None Game ------ Seed NetworkAngularLance Manual? 0 Play Time 00:27:11 Cumulative 155.0 hours Start 2026.01.28 @ 21:40:53 End 2026.01.29 @ 02:26:00 Sessions 2 Manual Loads 0 Difficulty Rogue Special Mode None Game No. 193 Rogue 188 Adventurer 5 Explorer 0 Win Type - Total 5 Types 4/0/0/1/0/0/0/0/0/0 Lore% 45 Gallery% 61 Achievement% 49 Wizard Run 0 Options --------- Layout 0 ASCII 0 Keyboard 1 Movement Vi Keybinds 0 Fullscreen 1 Font 24/Terminus Map View 76x50 Zoom Use 0% Tactical HUD 1 Map Filters NONE Filters NONE Steam 1 RUN: 3050b388-b55a-4668-b69b-cbf963a91b23